Cogmind - Beta 10.2 @@@ ROGUE MODE // 2021.08.07 @ 16:24:54 Player: Demise Result: Destroyed by as-89718 with Assembled Blade Performance ------------- Evolutions (0) 0 Regions Visited (2) 400 Robots Destroyed (25) 125 Value Destroyed (468) 468 Prototype IDs (0) 0 Alien Tech Used (0) 0 Bonus (83) 83 TOTAL SCORE: 1076 Bonus ------- High Alert Combat Kills 23 Follower Combat Kills 60 Cogmind --------- Core Integrity 0/250 Matter 294/300 Energy 84/100 System Corruption 0% Temperature Cool (0) Movement Core (100) Ox1 Location -10/Mines Parts ------- > --- POWER (1) -------- (None) > --- PROPULSION (2) --- (None) > --- UTILITY (2) ------ Visual Processing Unit Signal Interpreter > --- WEAPON (2) ------- Light Assault Rifle Grenade Launcher > --- INVENTORY (4) ---- Experimental Sensor Array Hacking Suite Light Assault Rifle Grenade Launcher Peak State ------------ > --- POWER ------------ Ion Engine > --- PROPULSION ------- (None) > --- UTILITY ---------- Weight Redist. System Signal Interpreter > --- WEAPON ----------- Assault Rifle Light Assault Rifle > --- INVENTORY -------- Sensor Array Medium Laser Grenade Launcher Grenade Launcher [Rating: 6] Favorites ----------- Power Ion Engine Engine Ion Engine Propulsion None Utility Visual Processing Unit Device Weight Redist. System Processor Visual Processing Unit Weapon Light Assault Rifle Energy Gun Medium Laser Ballistic Gun Light Assault Rifle Launcher Grenade Launcher Build | -11 -10 -10 ------- Run | Scr Mat Min Slots Evolved . | . . . Power . | . . . Propulsion . | . . . Utility . | . . . Weapon . | . . . Parts Attached 18 | 2 15 1 Power 2 | . 2 . Engine 2 | . 2 . Core . | . . . Reactor . | . . . Propulsion . | . . . Treads . | . . . Leg . | . . . Wheel . | . . . Hover . | . . . Flight . | . . . Utility 5 | . 5 . Device 2 | . 2 . Storage . | . . . Processor 3 | . 3 . Hackware . | . . . Protection . | . . . Artifact . | . . . Weapon 11 | 2 8 1 Energy Gun 2 | . 2 . Energy Cannon . | . . . Ballistic Gun 6 | 2 4 . Ballistic Cannon . | . . . Launcher 3 | . 2 1 Special Weapon . | . . . Impact Weapon . | . . . Slashing Weapon . | . . . Piercing Weapon . | . . . Special Melee Weapon . | . . . Unidentified Prototypes . | . . . Parts Lost 3 | . 3 . Power . | . . . Propulsion . | . . . Utility . | . . . Weapon 3 | . 3 . Highest Loss Streak 2 | . 2 . Average Slot Usage (%) 44 | . 42 57 Engine 1 | . 1 . Device 3 | . 4 . Processor 14 | . 12 28 Energy Gun 5 | . 5 . Ballistic Gun 16 | . 15 28 Launcher 1 | . 2 . Naked Turns . | . . . Heaviest Build 10 | 3 10 2 Greatest Support 9 | 3 9 3 Greatest Overweight (x) 3 | . 3 . Average Overweight (x) . | . . . Largest Inventory Capacity 4 | 4 4 4 Average Capacity 4 | 4 4 4 Most Carried 4 | 1 4 4 Average Carried 3 | . 3 4 Final Capacity 4 | 4 4 4 Final Carried 4 | 1 4 4 Class Distribution -------------------- 100% | Mutant Dominant Class ---------------- Mutant | -10/Materials Mutant | -10/Mines Resources | -11 -10 -10 ----------- Run | Scr Mat Min Matter Collected 589 | 248 322 19 Remotely . | . . . Salvage Created 660 | 70 583 7 Parts 47 | 3 44 . Haulers Intercepted 2 | . 2 . Recyclers Shooed 2 | 1 1 . Parts Field Recycled . | . . . Retrieved Matter . | . . . Parts Self-Destructed . | . . . Prevented . | . . . Kills | -11 -10 -10 ------- Run | Scr Mat Min Combat Hostiles Destroyed 15 | . 14 1 Guns 5 | . 5 . AOE 10 | . 9 1 Classes Destroyed 9 | 2 6 1 Worker 1 | . 1 . Builder 1 | . 1 . Tunneler 1 | 1 . . Hauler 2 | . 2 . Recycler 3 | 1 2 . Watcher 3 | . 3 . Swarmer 6 | . 6 . Grunt 8 | . 8 . Assembled 1 | . . 1 Best Kill Streak 10 | 1 10 1 Combat Bots Only 6 | . 6 1 Max Kills in Single Turn 3 | 1 3 1 Gunslinging 1 | . 1 . Exploded 2 | . 2 1 Melee . | . . . Uniques/NPCs Destroyed . | . . . Combat | -11 -10 -10 -------- Run | Scr Mat Min Damage Taken 560 | . 414 146 Core 250 | . 172 78 Absorbed by Shields . | . . . Core Remaining (%) 100 | 100 . . Volleys Fired 67 | 7 59 1 Largest 2 | 2 2 1 Hottest 70 | 40 70 30 Shots Fired 103 | 14 88 1 Gun 94 | 14 80 . Cannon . | . . . Launcher 9 | . 8 1 Special . | . . . Kinetic 80 | 14 66 . Thermal 14 | . 14 . Explosive 9 | . 8 1 Electromagnetic . | . . . Robot Hit Streak 10 | 4 10 1 Robot Miss Streak 5 | 3 5 . Penetration Max . | . . . Secondary Targets 1 | . 1 . Max Gunslinging Chain 1 | . 1 . Shots Hit Robots 61 | 8 52 1 Core Hits 46 | 4 39 3 Critical Hits . | . . . Critical Kills . | . . . Critical Parts Destroyed . | . . . Melee Attacks . | . . . Impact . | . . . Slashing . | . . . Piercing . | . . . Sneak Attacks . | . . . Combat Hostiles . | . . . Follow-up Attacks . | . . . Damage Inflicted 1422 | 76 1256 90 Guns 658 | 76 582 . Cannons . | . . . Explosions 764 | . 674 90 Melee . | . . . Ramming . | . . . Kinetic 556 | 76 480 . Thermal 102 | . 102 . Explosive 764 | . 674 90 Electromagnetic . | . . . Impact . | . . . Slashing . | . . . Piercing . | . . . Highest Corruption . | . . . Average Corruption . | . . . Corruption Purged . | . . . Overload Shots . | . . . Overflow Damage 23 | . 23 . Projectiles . | . . . Explosions 23 | . 23 . Melee . | . . . Knockbacks . | . . . Impact . | . . . Kinetic . | . . . Secondary . | . . . Self-Inflicted Damage . | . . . Shots . | . . . Rammed . | . . . Targets Rammed . | . . . Kicked . | . . . Crushed . | . . . Highest Temperature 29 | . 29 . Average Temperature 7 | . 7 . Received Heat Transfer 222 | . 195 27 Siege Activations . | . . . Robots Corrupted . | . . . Combat Hostiles . | . . . Parts Fried . | . . . Impact Corruptions . | . . . Robots Melted . | . . . Combat Hostiles . | . . . Parts Melted 1 | . 1 . Heat Transferred 296 | . 296 . Parts Sabotaged . | . . . Parts Stolen . | . . . Parts Stripped . | . . . Power Chain Reactions . | . . . Missiles Intercepted . | . . . Alert | -11 -10 -10 ------- Run | Scr Mat Min Peak Influence 523 | 10 523 301 Initial 203 | . 6 203 Average 244 | 3 259 235 Maximum Alert Level 2 | . 2 1 Low Security (%) 31 | 100 30 . Level 1 57 | . 55 100 Level 2 11 | . 13 . Level 3 . | . . . Level 4 . | . . . Level 5 . | . . . High Security . | . . . Max Security . | . . . Squads Dispatched 2 | . 2 . Investigation 2 | . 2 . Extermination . | . . . Reinforcement . | . . . Assault . | . . . Garrison . | . . . Intercept . | . . . Construction Impeded . | . . . Haulers Reinforced . | . . . Stealth | -11 -10 -10 --------- Run | Scr Mat Min Distress Signals 2 | . 2 . Communications Jammed . | . . . Distress Signals . | . . . Times Spotted 38 | . 28 10 Peak Tracking Total 8 | . 6 8 Tactical Retreats 4 | . 3 1 Traps | -11 -10 -10 ------- Run | Scr Mat Min Traps Triggered 1 | . 1 . Indirectly . | . . . Trap Hack Attempts . | . . . Triggered . | . . . Disarmed . | . . . Reprogrammed . | . . . Reused . | . . . Traps Extracted . | . . . Installed . | . . . Triggered . | . . . Machines | -11 -10 -10 ---------- Run | Scr Mat Min Machines Disabled 4 | . 3 1 Max in Single Turn 3 | . 3 1 Machines Sabotaged . | . . . Garrisons Compromised . | . . . Overloaded Fab Kills . | . . . Fab Network Shutdowns . | . . . Hacking | -11 -10 -10 --------- Run | Scr Mat Min Machines Accessed 9 | . 9 . Terminals 7 | . 7 . Fabricators . | . . . Repair Stations 1 | . 1 . Recycling Units 1 | . 1 . Scanalyzers . | . . . Garrison Access . | . . . Total Hacks 32 | . 32 . Successful 22 | . 22 . Failed 9 | . 9 . Catastrophic . | . . . Database Lockouts 1 | . 1 . Manual 22 | . 22 . Terminals 24 | . 24 . Fabricators . | . . . Repair Stations 6 | . 6 . Recycling Units 2 | . 2 . Scanalyzers . | . . . Garrison Access . | . . . Terminal Hacks 8 | . 8 . Part Schematic 2 | . 2 . Robot Analysis 3 | . 3 . Branch Access Points 1 | . 1 . Terminal Index 1 | . 1 . Locate Traps 1 | . 1 . Fabricator Hacks . | . . . Repair Station Hacks 4 | . 4 . Scan Component 3 | . 3 . Repair 1 | . 1 . Recycling Unit Hacks 1 | . 1 . Retrieve Components 1 | . 1 . Scanalyzer . | . . . Garrison Access Hacks . | . . . Unauthorized Hacks 9 | . 9 . Terminals 8 | . 8 . Assimilate 1 | . 1 . Botnet 6 | . 6 . Operators 1 | . 1 . Fabricators . | . . . Repair Stations . | . . . Recycling Units 1 | . 1 . Tunnel 1 | . 1 . Scanalyzers . | . . . Garrison Access . | . . . Data Cores Recovered . | . . . Used . | . . . Hacking Detections 8 | . 8 . Full Trace Events 2 | . 2 . Feedback Events . | . . . Feedback Blocked . | . . . Robot Schematics Acquired . | . . . Robots Built . | . . . Matter . | . . . Time . | . . . Total Robot Build Rating . | . . . Part Schematics Acquired 2 | . 2 . Parts Built . | . . . Matter . | . . . Time . | . . . Total Part Build Rating . | . . . Parts Repaired 1 | . 1 . Time 13 | . 13 . Parts Recycled . | . . . Recycled Matter . | . . . Retrieved Matter . | . . . Retrieved Components 10 | . 10 . Parts Scanalyzed . | . . . Part Schematics Acquired . | . . . Parts Damaged . | . . . Bothacking | -11 -10 -10 ------------ Run | Scr Mat Min Used RIF Installer . | . . . Robots Hacked . | . . . Non-combat . | . . . Combat . | . . . Robot Hacks Applied . | . . . Relay Couplers Released . | . . . Robots Rewired . | . . . Allies Hacked . | . . . Hacks Repelled . | . . . Allies | -11 -10 -10 -------- Run | Scr Mat Min Total Allies 2 | . 1 1 Largest Group 1 | . 1 1 Highest-Rated Group 31 | . 10 31 Highest-Rated Ally 31 | . 10 31 Total Orders . | . . . Ally Attacks 10 | . . 10 Total Damage 125 | . . 125 Kills 2 | . . 2 Allies Corrupted . | . . . Allies Melted . | . . . Intel | -11 -10 -10 ------- Run | Scr Mat Min Robot Analysis Total 3 | . 3 . Derelict Logs Recovered . | . . . Drone Launches . | . . . Drone Recoveries . | . . . Exploration | -11 -10 -10 ------------- Run | Scr Mat Min Turns Passed 856 | 43 729 84 Spaces Moved 1054 | 38 892 124 Core 1054 | 38 892 124 Treads . | . . . Legs . | . . . Wheels . | . . . Hover . | . . . Flight . | . . . Fastest Speed 50 | 50 50 50 Average Speed 53 | 50 54 50 Slowest Speed 200 | 50 200 50 Overloaded Moves . | . . . Propulsion Burnouts . | . . . Robots Hopped . | . . . Cave-ins Triggered . | . . . Exploration Rate (%) 41 | 3 96 24 Regions Visited 2 Branch Regions 1 Pre-discovered Areas 1 | . 1 . Known Exits Taken 1 | . 1 . Unknown Exits Taken 1 | 1 . . Scrap Searched 1 | . . 1 Spaces Dug . | . . . Terrain Destroyed 101 | . 90 11 Melee . | . . . Projectile . | . . . AOE 101 | . 90 11 Terrain Rammed . | . . . Walls Destroyed . | . . . Machines Disabled . | . . . Actions | -11 -10 -10 --------- Run | Scr Mat Min Total 1244 | 47 1052 145 Wait 90 | . 73 17 Move 1052 | 37 891 124 Hop . | . . . Pick Up 8 | 1 6 1 Fast Attach 11 | 2 9 . Attach 4 | . 4 . Detach 4 | . 4 . Swap 3 | . 2 1 Drop 5 | . 4 1 Fire 67 | 7 59 1 Melee . | . . . Ram . | . . . Kick . | . . . Crush . | . . . Escape Stasis . | . . . Rewire . | . . . Trap . | . . . Miscellaneous . | . . . Route ------- -11/Scrapyard -10/Materials (discovered 4 exits: *Mat x3 / *Min) -10/Mines (discovered 1 exit: *Mat) History --------- Turn | Location | Event 7 | -11/Scrapyard | Discovered new exit (range 16) 44 | -11/Scrapyard | Entered Materials 240 | -10/Materials | Discovered new exit (range 12) 270 | -10/Materials | Discovered new exit (range 15) 284 | -10/Materials | Identified exit to Materials 305 | -10/Materials | Build established: Mutant 316 | -10/Materials | Repaired Ion Engine 401 | -10/Materials | Discovered exit to Materials (range 11) 492 | -10/Materials | Core integrity fell below 50% 503 | -10/Materials | Discovered exit to Materials (range 14) 506 | -10/Materials | Identified exit to Mines 508 | -10/Materials | Central database locked down 773 | -10/Materials | Entered Mines 787 | -10/Mines | Assembled infested the area 788 | -10/Mines | Found a damaged Exp. Sensor Array with a note attached 789 | -10/Mines | Found Prototype Device 810 | -10/Mines | Received a Mining Laser from a helpful Derelict 853 | -10/Mines | Discovered exit to Materials (range 10) 856 | -10/Mines | Core integrity fell below 20% 857 | -10/Mines | Destroyed by as-89718 with Assembled Blade Last Messages --------------- 00793_ K-01 Serf system terminally corrupted. 00808_ A derelict emerges from the shadows: "What are you doing alone down here?" 00810_ BL-8SY(g): "And why aren't you carrying a mining laser?! Certainly you don't want THEM to uncover you when the ceiling comes crashing down? Here, take my spare." 00813_ BL-8SY(g): "You're apparently new around these parts, I'll cover you." 00820_ BL-8SY(g): "Mining lasers are a lot more useful than you might think..." 00824_ G-47 Trooper destroyed. 00840_ G-34 Mercenary destroyed. 00844_ Acquired 5 matter. 00853_ EXIT=FOUND: MATERIALS 00854_ Searching scrap... 00854_ Found Aluminum Leg. 00854_ Found Med. Storage Unit. 00854_ Found 14 Matter. 00855_ Acquired 10 matter. 00855_ Seismic Survey Station disabled. 00855_ as-20529 destroyed. 00856_ Acquired 4 matter. 00856_ U-05 Engineer builds a Wall. Map ----- +----------------------------------------------------+ | ?????????????????????????????????????????????????? | | ?????????????????????????????????????????????????? | | ?????????????????????????????????????????????????? | | ?????????????????????????????????????????????????? | | ?????????????????????????????????????????????????? | | ?????????????????????????????????????????????????? | | ?????????????????????????????????????????????????? | | ?????????????????????????????????????????????????? | | ?????????????????????????????????????????????????? | | ?????????????????????????????????????????????????? | | ?????????????????????????????????????????????????? | | ?????????????????????????????????????????????????? | | ?????????????????????????????????????????????????? | | ?????????????????????????????????????????????????? | | ??????????????????????#####??????????????????????? | | ??????????????????# ?* #????????????????????? | | ???????????????#### """ #????????????????????? | | ???????????????? """ #????????????????????? | | ????????????????? """ < #????????????????????? | | ?????????????????## ##???????????????????? | | ?????????????????# """ ????????????????????? | | ###############??# """ #????????????????????? | | =%!%= #??# """ #????????????????????? | | ############# #??# %a=% ##???????????????????? | | ????????????# #??# = a! # # # #???????????? | | ????????????# #### @ # #???????????? | | ????????????# a #??????????? | | ????????????#### t =% #?????????? | | ?????#####?????# ###### # = #?????????? | | ????## ##????# ####?## #!! ##?????????? | | ???## ###??# ##?? #??###??????????? | | ???# ##?# ##? == ##???????????????? | | #??# ### ### %%=# #????????????????? | | # ?# * ##????????????????? | | # ?# ####?????????????????? | | # ## ### !#####%##????????????????????? | | # ### ######?????#?????????????????????? | | # ### ##????????????????????????????????? | | ### ## #####?????????????????????????????????? | | ??# ## #????????????????????????????????????? | | ??# ## #???????????????????????????????????? | | ??# ## #???????????????????????????????????? | | ??# ### #???????????????????????????????????? | | ??# #?### ##???????????????????????????????????? | | ### #????####????????????????????????????????????? | | ##???????????????????????????????????????????? | | #???????????????????????????????????????????? | | #???????????????????????????????????????????? | | #???????????????????????????????????????????? | | ##???????????????????????????????????????????? | +----------------------------------------------------+ Best States ------------- Heat Dissipation 25 Energy Generation 10 Energy Capacity 250 Matter Stores 300 Matter Capacity 300 Sight Range 18 Robot Scan Range 10 Terrain Scan Density 10 Additional Mass Support 6 Evasion (%) 50 Item Schematics ----------------- Sml. Storage Unit | -10/Materials | Hacked Med. Storage Unit | -10/Materials | Hacked Robot Schematics ------------------ None Fabricated ------------ Nothing Alien Tech Used ----------------- None Achievements -------------- None Challenges ------------ None Game ------ Seed LatentMetafieldMagmablaster Manual? 0 Play Time 00:13:46 Cumulative 445.3 hours Start 2021.08.07 @ 16:11:36 End 2021.08.07 @ 16:24:54 Sessions 3 Manual Loads 0 Difficulty Rogue Special Mode None Game No. 367 Rogue 367 Adventurer 0 Explorer 0 Win Type - Total 1 Types 0/0/0/1/0/0/0/0/0 Lore% 72 Gallery% 82 Achievement% 62 Wizard Run 0 Options --------- ASCII 0 Keyboard 1 Movement Numpad Keybinds 0 Fullscreen 1 Font 12/Terminus Map View 83x54 Tactical HUD 1 Map Filters NONE Filters NONE Steam 1 RUN: 08b8dc8a-ba7c-4db4-b84f-cacf178363f0